Workbook

Sheet Dashboard
N1: View credits & info.
B4: It took us…,
B7: =Calculations!G9 -> 9 matches | E7: =Calculations!G5 -> 2471 runs | H7: =Calculations!G8 -> 62 wickets lost | K7: =Calculations!G15 -> 57 sixes
B8: =Calculations!$G$17 -> in 8 venues | E8: =Calculations!G16 -> 2564 balls faced | H8: =Calculations!G11 -> 16 players | K8: =Calculations!G14 -> 235 fours
B9: =Calculations!G10 -> 7 won | E9: =Calculations!G12 -> 5 centuries | H9: =Calculations!G7 -> We took 76 wickets | K9: =Calculations!I15 -> 2/3rd sixes by Sachin, Sehwag & Yuvraj
B10: =Calculations!$G$19 -> We batted first 6 times | E10: =Calculations!G13 -> and 13 half-centuries | H10: =Calculations!$G$18 -> in 437 overs bowled
B13: The journey…,
B15: Date | C15: With | D15: Result
B16: =Data!C4 -> 2011-02-19 | C16: =Data!G4 -> Bangladesh | D16: =Calculations!C39 -> India won
B17: =Data!C5 -> 2011-02-27 | C17: =Data!G5 -> England | D17: =Calculations!C40 -> Match tied
B18: =Data!C6 -> 2011-03-06 | C18: =Data!G6 -> Ireland | D18: =Calculations!C41 -> India won
B19: =Data!C7 -> 2011-03-09 | C19: =Data!G7 -> Netherlands | D19: =Calculations!C42 -> India won
B20: =Data!C8 -> 2011-03-12 | C20: =Data!G8 -> South Africa | D20: =Calculations!C43 -> South Africa won
B21: =Data!C9 -> 2011-03-20 | C21: =Data!G9 -> West Indies | D21: =Calculations!C44 -> India won
B22: =Data!C10 -> 2011-03-24 | C22: =Data!G10 -> Australia | D22: =Calculations!C45 -> India won
B23: =Data!C11 -> 2011-03-30 | C23: =Data!G11 -> Pakistan | D23: =Calculations!C46 -> India won
B24: =Data!C12 -> 2011-04-02 | C24: =Data!G12 -> Sri Lanka | D24: =Calculations!C47 -> India won
B26: The best…,
B28: BATTING | E28: BOWLING | H28: CATCHES | K28: PARTNERSHIPS
B40: Credits…,
B42: All data & pictures from: | D42: http://espncricinfo.com
B43: Dashboard Prepared by: | D43: http://chandoo.org/wp/
B44: Special thanks to Ravindra, my assistant for compiling the data.

Sheet Data
H2: India Score | K2: Opposition Score | R2: India | X2: Opposition
A3: Result | C3: Date of Match | D3: Round | E3: Venue (Stadium Name) | F3: Location (City) | G3: with whom (country) | H3: Score | I3: Wickets | J3: Overs Played | K3: Score | L3: Wickets | M3: Overs Played | N3: Who Won the Toss | O3: Who batted first | P3: Match Result (WON / LOST / TIED) | Q3: Man of the Match | R3: Sixes | S3: Fours | T3: High Scorer | U3: Highest Score | V3: Highest Wicket Taker | W3: Highest Wickets | X3: Sixes | Y3: Fours | Z3: High Scorer | AA3: Highest Score | AB3: Highest Wicket Taker | AC3: Highest Wickets
A4: India won by 87 runs | B4: 1 | C4: 2011-02-19 | D4: Group B | E4: Shere Bangla National Stadium | F4: Mirpur | G4: Bangladesh | H4: 370 | I4: 4 | J4: 50 | K4: 283 | L4: 9 | M4: 50 | N4: Bangladesh | O4: India | P4: WON | Q4: Virender Sehwag (vc) | R4: 7 | S4: 29 | T4: Virender Sehwag (vc) | U4: 175 | V4: Munaf Patel | W4: 4 | X4: 3 | Y4: 18 | Z4: Tamim Iqbal | AA4: 70 | AB4: Shafiul Islam | AC4: 1
A5: Match tied | B5: 2 | C5: 2011-02-27 | D5: Group B | E5: M Chinnaswamy Stadium | F5: Bangalore | G5: England | H5: 338 | I5: 10 | J5: 49.5 | K5: 338 | L5: 8 | M5: 50 | N5: India | O5: India | P5: TIED | Q5: AJ Strauss | R5: 7 | S5: 35 | T5: Sachin Tendulkar | U5: 120 | V5: Zaheer Khan | W5: 3 | X5: 5 | Y5: 29 | Z5: AJ Strauss | AA5: 158 | AB5: TT Bresnan | AC5: 5
A6: India won by 3 runs | B6: 3 | C6: 2011-03-06 | D6: Group B | E6: M Chinnaswamy Stadium | F6: Bangalore | G6: Ireland | H6: 210 | I6: 5 | J6: 46 | K6: 207 | L6: 10 | M6: 47.5 | N6: India | O6: India | P6: WON | Q6: Yuvraj Singh | R6: 3 | S6: 17 | T6: Yuvraj Singh | U6: 50 | V6: Yuvraj Singh | W6: 5 | X6: 1 | Y6: 16 | Z6: WTS Porterfield | AA6: 75 | AB6: DT Johnston | AC6: 2
A7: India won by 5 wickets | B7: 4 | C7: 2011-03-09 | D7: Group B | E7: Feroz Shah Kotla | F7: Delhi | G7: Netherlands | H7: 191 | I7: 5 | J7: 36.3 | K7: 189 | L7: 10 | M7: 46.4 | N7: Netherlands | O7: Netherlands | P7: WON | Q7: Yuvraj Singh | R7: 3 | S7: 26 | T7: Yuvraj Singh | U7: 51 | V7: Zaheer Khan | W7: 3 | X7: 4 | Y7: 15 | Z7: PW Borren | AA7: 38 | AB7: PM Seelaar | AC7: 3
A8: South Africa won by 3 wickets | B8: 5 | C8: 2011-03-12 | D8: Group B | E8: VCA Stadium | F8: Nagpur | G8: South Africa | H8: 296 | I8: 10 | J8: 48.4 | K8: 300 | L8: 7 | M8: 49.4 | N8: India | O8: India | P8: LOST | Q8: DW Steyn | R8: 4 | S8: 27 | T8: Sachin Tendulkar | U8: 111 | V8: Harbhajan Singh | W8: 3 | X8: 5 | Y8: 24 | Z8: JH Kallis | AA8: 69 | AB8: DW Steyn | AC8: 5
A9: India won by 80 runs | B9: 6 | C9: 2011-03-20 | D9: Group B | E9: MAC Stadium | F9: Chennai | G9: West Indies | H9: 268 | I9: 10 | J9: 49.1 | K9: 188 | L9: 10 | M9: 43 | N9: India | O9: India | P9: WON | Q9: Yuvraj Singh | R9: 2 | S9: 23 | T9: Yuvraj Singh | U9: 113 | V9: Zaheer Khan | W9: 3 | X9: 3 | Y9: 13 | Z9: DS Smith | AA9: 81 | AB9: R Rampaul | AC9: 5
A10: India won by 5 wickets | B10: 7 | C10: 2011-03-24 | D10: Quarter-Final | E10: Sardar Patel Stadium | F10: Motera | G10: Australia | H10: 261 | I10: 5 | J10: 47.4 | K10: 260 | L10: 6 | M10: 50 | N10: Australia | O10: Australia | P10: WON | Q10: Yuvraj Singh | R10: 1 | S10: 23 | T10: Yuvraj Singh | U10: 57 | V10: Ravichandran Ashwin | W10: 2 | X10: 3 | Y10: 21 | Z10: RT Ponting | AA10: 104 | AB10: B Lee | AC10: 1
A11: India won by 29 runs | B11: 8 | C11: 2011-03-30 | D11: Semi-Final | E11: PCA Stadium | F11: Mohali | G11: Pakistan | H11: 260 | I11: 9 | J11: 50 | K11: 231 | L11: 10 | M11: 49.5 | N11: India | O11: India | P11: WON | Q11: Sachin Tendulkar | R11: 0 | S11: 30 | T11: Sachin Tendulkar | U11: 85 | V11: Zaheer Khan | W11: 2 | X11: 3 | Y11: 20 | Z11: Misbah-ul-Haq | AA11: 56 | AB11: Wahab Riaz | AC11: 5
A12: India won by 6 wickets | B12: 9 | C12: 2011-04-02 | D12: Final | E12: Wankhede Stadium | F12: Mumbai | G12: Sri Lanka | H12: 277 | I12: 4 | J12: 48.2 | K12: 274 | L12: 6 | M12: 50 | N12: Sri Lanka | O12: Sri Lanka | P12: WON | Q12: MS Dhoni (c/wk) | R12: 2 | S12: 35 | T12: Gautam Gambhir | U12: 97 | V12: Zaheer Khan | W12: 2 | X12: 2 | Y12: 27 | Z12: DPMD Jayawardene | AA12: 103 | AB12: SL Malinga | AC12: 2
M13: =SUM(INT(M4:M12)) -> 434
M14: =(SUM(M4:M12)-M13)/0.6 -> 3
M15: =M13+M14 -> 437
E20: Batting | J20: Bowling
C21: Name | D21: Match Date | E21: Runs | F21: 4s | G21: 6s | H21: Balls faced | I21: Got out (Yes / No) | J21: Wickets | K21: Overs Bowled (round figures only) | L21: Maidens | M21: Runs Given | N21: TopScore Order | O21: Top Wicket Takers | P21: Number | Q21: Best?
C22: MS Dhoni (c/wk) | D22: 2011-02-19 | P22: 1 | Q22: =Table1[[#This Row],[TopScore Order]]+Table1[[#This Row],[Top Wicket Takers]] -> 0
C23: Virender Sehwag (vc) | D23: 2011-02-19 | E23: 175 | F23: 14 | G23: 5 | H23: 140 | I23: Y | N23: 1 | P23: 2 | Q23: =Table1[[#This Row],[TopScore Order]]+Table1[[#This Row],[Top Wicket Takers]] -> 1
C24: Ravichandran Ashwin | D24: 2011-02-19 | P24: 3 | Q24: =Table1[[#This Row],[TopScore Order]]+Table1[[#This Row],[Top Wicket Takers]] -> 0
C25: Piyush Chawla | D25: 2011-02-19 | P25: 4 | Q25: =Table1[[#This Row],[TopScore Order]]+Table1[[#This Row],[Top Wicket Takers]] -> 0
C26: Gautam Gambhir | D26: 2011-02-19 | E26: 39 | F26: 3 | G26: 0 | H26: 39 | I26: Y | N26: 3 | P26: 5 | Q26: =Table1[[#This Row],[TopScore Order]]+Table1[[#This Row],[Top Wicket Takers]] -> 3
C27: Harbhajan Singh | D27: 2011-02-19 | J27: 1 | K27: 10 | L27: 0 | M27: 41 | O27: 3 | P27: 6 | Q27: =Table1[[#This Row],[TopScore Order]]+Table1[[#This Row],[Top Wicket Takers]] -> 3
C28: Zaheer Khan | D28: 2011-02-19 | J28: 2 | K28: 10 | L28: 0 | M28: 40 | O28: 2 | P28: 7 | Q28: =Table1[[#This Row],[TopScore Order]]+Table1[[#This Row],[Top Wicket Takers]] -> 2
C29: Virat Kohli | D29: 2011-02-19 | E29: 100 | F29: 8 | G29: 2 | H29: 83 | I29: N | N29: 2 | P29: 8 | Q29: =Table1[[#This Row],[TopScore Order]]+Table1[[#This Row],[Top Wicket Takers]] -> 2
C30: Ashish Nehra | D30: 2011-02-19 | P30: 9 | Q30: =Table1[[#This Row],[TopScore Order]]+Table1[[#This Row],[Top Wicket Takers]] -> 0
C31: Munaf Patel | D31: 2011-02-19 | J31: 4 | K31: 10 | L31: 0 | M31: 48 | O31: 1 | P31: 10 | Q31: =Table1[[#This Row],[TopScore Order]]+Table1[[#This Row],[Top Wicket Takers]] -> 1
C32: Yusuf Pathan | D32: 2011-02-19 | E32: 8 | F32: 0 | G32: 0 | H32: 10 | I32: Y | J32: 1 | K32: 8 | L32: 0 | M32: 49 | P32: 11 | Q32: =Table1[[#This Row],[TopScore Order]]+Table1[[#This Row],[Top Wicket Takers]] -> 0
C33: Suresh Raina | D33: 2011-02-19 | P33: 12 | Q33: =Table1[[#This Row],[TopScore Order]]+Table1[[#This Row],[Top Wicket Takers]] -> 0
C34: Sreesanth | D34: 2011-02-19 | J34: 0 | K34: 5 | L34: 0 | M34: 53 | P34: 13 | Q34: =Table1[[#This Row],[TopScore Order]]+Table1[[#This Row],[Top Wicket Takers]] -> 0
C35: Sachin Tendulkar | D35: 2011-02-19 | E35: 28 | F35: 4 | G35: 0 | H35: 29 | I35: Y | P35: 14 | Q35: =Table1[[#This Row],[TopScore Order]]+Table1[[#This Row],[Top Wicket Takers]] -> 0
C36: Yuvraj Singh | D36: 2011-02-19 | P36: 15 | Q36: =Table1[[#This Row],[TopScore Order]]+Table1[[#This Row],[Top Wicket Takers]] -> 0
C37: MS Dhoni (c/wk) | D37: 2011-02-27 | E37: 31 | F37: 3 | G37: 3 | H37: 25 | I37: y | P37: 16 | Q37: =Table1[[#This Row],[TopScore Order]]+Table1[[#This Row],[Top Wicket Takers]] -> 0
C38: Virender Sehwag (vc) | D38: 2011-02-27 | E38: 35 | F38: 6 | G38: 6 | H38: 26 | I38: y | P38: 17 | Q38: =Table1[[#This Row],[TopScore Order]]+Table1[[#This Row],[Top Wicket Takers]] -> 0
C39: Ravichandran Ashwin | D39: 2011-02-27 | P39: 18 | Q39: =Table1[[#This Row],[TopScore Order]]+Table1[[#This Row],[Top Wicket Takers]] -> 0
C40: Piyush Chawla | D40: 2011-02-27 | E40: 2 | F40: 0 | G40: 0 | H40: 4 | I40: y | J40: 2 | K40: 10 | L40: 0 | M40: 71 | O40: 2 | P40: 19 | Q40: =Table1[[#This Row],[TopScore Order]]+Table1[[#This Row],[Top Wicket Takers]] -> 2
C41: Gautam Gambhir | D41: 2011-02-27 | E41: 51 | F41: 5 | G41: 5 | H41: 61 | I41: y | N41: 3 | P41: 20 | Q41: =Table1[[#This Row],[TopScore Order]]+Table1[[#This Row],[Top Wicket Takers]] -> 3
C42: Harbhajan Singh | D42: 2011-02-27 | E42: 0 | F42: 0 | G42: 0 | H42: 1 | I42: y | J42: 1 | K42: 10 | L42: 0 | M42: 58 | P42: 21 | Q42: =Table1[[#This Row],[TopScore Order]]+Table1[[#This Row],[Top Wicket Takers]] -> 0
C43: Zaheer Khan | D43: 2011-02-27 | E43: 4 | F43: 0 | G43: 0 | H43: 5 | I43: y | J43: 3 | K43: 10 | L43: 0 | M43: 64 | O43: 1 | P43: 22 | Q43: =Table1[[#This Row],[TopScore Order]]+Table1[[#This Row],[Top Wicket Takers]] -> 1
C44: Virat Kohli | D44: 2011-02-27 | E44: 8 | F44: 1 | G44: 1 | H44: 5 | I44: y | P44: 23 | Q44: =Table1[[#This Row],[TopScore Order]]+Table1[[#This Row],[Top Wicket Takers]] -> 0
C45: Ashish Nehra | D45: 2011-02-27 | P45: 24 | Q45: =Table1[[#This Row],[TopScore Order]]+Table1[[#This Row],[Top Wicket Takers]] -> 0
C46: Munaf Patel | D46: 2011-02-27 | E46: 0 | F46: 0 | G46: 0 | H46: 0 | I46: n | J46: 2 | K46: 10 | L46: 0 | M46: 70 | O46: 3 | P46: 25 | Q46: =Table1[[#This Row],[TopScore Order]]+Table1[[#This Row],[Top Wicket Takers]] -> 3
C47: Yusuf Pathan | D47: 2011-02-27 | E47: 14 | F47: 1 | G47: 1 | H47: 8 | I47: y | J47: 0 | K47: 3 | L47: 0 | M47: 21 | P47: 26 | Q47: =Table1[[#This Row],[TopScore Order]]+Table1[[#This Row],[Top Wicket Takers]] -> 0
C48: Suresh Raina | D48: 2011-02-27 | P48: 27 | Q48: =Table1[[#This Row],[TopScore Order]]+Table1[[#This Row],[Top Wicket Takers]] -> 0
C49: Sreesanth | D49: 2011-02-27 | P49: 28 | Q49: =Table1[[#This Row],[TopScore Order]]+Table1[[#This Row],[Top Wicket Takers]] -> 0
C50: Sachin Tendulkar | D50: 2011-02-27 | E50: 120 | F50: 10 | G50: 10 | H50: 115 | I50: y | N50: 1 | P50: 29 | Q50: =Table1[[#This Row],[TopScore Order]]+Table1[[#This Row],[Top Wicket Takers]] -> 1
C51: Yuvraj Singh | D51: 2011-02-27 | E51: 58 | F51: 9 | G51: 9 | H51: 50 | I51: y | J51: 0 | K51: 7 | L51: 0 | M51: 46 | N51: 2 | P51: 30 | Q51: =Table1[[#This Row],[TopScore Order]]+Table1[[#This Row],[Top Wicket Takers]] -> 2
C52: MS Dhoni (c/wk) | D52: 2011-03-06 | E52: 34 | F52: 2 | G52: 0 | H52: 50 | I52: y | P52: 31 | Q52: =Table1[[#This Row],[TopScore Order]]+Table1[[#This Row],[Top Wicket Takers]] -> 0
C53: Virender Sehwag (vc) | D53: 2011-03-06 | E53: 5 | F53: 1 | G53: 0 | H53: 3 | I53: y | P53: 32 | Q53: =Table1[[#This Row],[TopScore Order]]+Table1[[#This Row],[Top Wicket Takers]] -> 0
C54: Ravichandran Ashwin | D54: 2011-03-06 | P54: 33 | Q54: =Table1[[#This Row],[TopScore Order]]+Table1[[#This Row],[Top Wicket Takers]] -> 0
C55: Piyush Chawla | D55: 2011-03-06 | J55: 0 | K55: 8 | L55: 0 | M55: 56 | P55: 34 | Q55: =Table1[[#This Row],[TopScore Order]]+Table1[[#This Row],[Top Wicket Takers]] -> 0
C56: Gautam Gambhir | D56: 2011-03-06 | E56: 10 | F56: 2 | G56: 0 | H56: 15 | I56: y | P56: 35 | Q56: =Table1[[#This Row],[TopScore Order]]+Table1[[#This Row],[Top Wicket Takers]] -> 0
C57: Harbhajan Singh | D57: 2011-03-06 | J57: 0 | K57: 9 | L57: 1 | M57: 29 | P57: 36 | Q57: =Table1[[#This Row],[TopScore Order]]+Table1[[#This Row],[Top Wicket Takers]] -> 0
C58: Zaheer Khan | D58: 2011-03-06 | J58: 3 | K58: 9 | L58: 1 | M58: 30 | O58: 2 | P58: 37 | Q58: =Table1[[#This Row],[TopScore Order]]+Table1[[#This Row],[Top Wicket Takers]] -> 2
C59: Virat Kohli | D59: 2011-03-06 | E59: 34 | F59: 3 | G59: 0 | H59: 53 | I59: y | N59: 3 | P59: 38 | Q59: =Table1[[#This Row],[TopScore Order]]+Table1[[#This Row],[Top Wicket Takers]] -> 3
C60: Ashish Nehra | D60: 2011-03-06 | P60: 39 | Q60: =Table1[[#This Row],[TopScore Order]]+Table1[[#This Row],[Top Wicket Takers]] -> 0
C61: Munaf Patel | D61: 2011-03-06 | J61: 1 | K61: 5 | L61: 0 | M61: 25 | O61: 3 | P61: 40 | Q61: =Table1[[#This Row],[TopScore Order]]+Table1[[#This Row],[Top Wicket Takers]] -> 3
C62: Yusuf Pathan | D62: 2011-03-06 | E62: 30 | F62: 2 | G62: 3 | H62: 24 | I62: n | J62: 0 | K62: 7 | L62: 1 | M62: 32 | P62: 41 | Q62: =Table1[[#This Row],[TopScore Order]]+Table1[[#This Row],[Top Wicket Takers]] -> 0
C63: Suresh Raina | D63: 2011-03-06 | P63: 42 | Q63: =Table1[[#This Row],[TopScore Order]]+Table1[[#This Row],[Top Wicket Takers]] -> 0
C64: Sreesanth | D64: 2011-03-06 | P64: 43 | Q64: =Table1[[#This Row],[TopScore Order]]+Table1[[#This Row],[Top Wicket Takers]] -> 0
C65: Sachin Tendulkar | D65: 2011-03-06 | E65: 38 | F65: 4 | G65: 0 | H65: 56 | I65: y | N65: 2 | P65: 44 | Q65: =Table1[[#This Row],[TopScore Order]]+Table1[[#This Row],[Top Wicket Takers]] -> 2
C66: Yuvraj Singh | D66: 2011-03-06 | E66: 50 | F66: 3 | G66: 0 | H66: 75 | I66: n | J66: 5 | K66: 10 | L66: 0 | M66: 31 | N66: 1 | O66: 1 | P66: 45 | Q66: =Table1[[#This Row],[TopScore Order]]+Table1[[#This Row],[Top Wicket Takers]] -> 2
C67: MS Dhoni (c/wk) | D67: 2011-03-09 | E67: 19 | F67: 2 | G67: 0 | H67: 40 | I67: n | P67: 46 | Q67: =Table1[[#This Row],[TopScore Order]]+Table1[[#This Row],[Top Wicket Takers]] -> 0
C68: Virender Sehwag (vc) | D68: 2011-03-09 | E68: 39 | F68: 5 | G68: 2 | H68: 26 | I68: y | N68: 2 | P68: 47 | Q68: =Table1[[#This Row],[TopScore Order]]+Table1[[#This Row],[Top Wicket Takers]] -> 2
C69: Ravichandran Ashwin | D69: 2011-03-09 | P69: 48 | Q69: =Table1[[#This Row],[TopScore Order]]+Table1[[#This Row],[Top Wicket Takers]] -> 0
C70: Piyush Chawla | D70: 2011-03-09 | J70: 2 | K70: 10 | L70: 0 | M70: 47 | O70: 3 | P70: 49 | Q70: =Table1[[#This Row],[TopScore Order]]+Table1[[#This Row],[Top Wicket Takers]] -> 3
C71: Gautam Gambhir | D71: 2011-03-09 | E71: 28 | F71: 3 | G71: 0 | H71: 28 | I71: y | N71: 3 | P71: 50 | Q71: =Table1[[#This Row],[TopScore Order]]+Table1[[#This Row],[Top Wicket Takers]] -> 3
C72: Harbhajan Singh | D72: 2011-03-09 | J72: 0 | K72: 10 | L72: 0 | M72: 31 | P72: 51 | Q72: =Table1[[#This Row],[TopScore Order]]+Table1[[#This Row],[Top Wicket Takers]] -> 0
C73: Zaheer Khan | D73: 2011-03-09 | J73: 3 | K73: 7 | L73: 0 | M73: 20 | O73: 1 | P73: 52 | Q73: =Table1[[#This Row],[TopScore Order]]+Table1[[#This Row],[Top Wicket Takers]] -> 1
C74: Virat Kohli | D74: 2011-03-09 | E74: 12 | F74: 2 | G74: 0 | H74: 20 | I74: y | P74: 53 | Q74: =Table1[[#This Row],[TopScore Order]]+Table1[[#This Row],[Top Wicket Takers]] -> 0
C75: Ashish Nehra | D75: 2011-03-09 | J75: 1 | K75: 5 | L75: 1 | M75: 22 | P75: 54 | Q75: =Table1[[#This Row],[TopScore Order]]+Table1[[#This Row],[Top Wicket Takers]] -> 0
C76: Munaf Patel | D76: 2011-03-09 | P76: 55 | Q76: =Table1[[#This Row],[TopScore Order]]+Table1[[#This Row],[Top Wicket Takers]] -> 0
C77: Yusuf Pathan | D77: 2011-03-09 | E77: 11 | F77: 1 | G77: 1 | H77: 10 | I77: y | J77: 0 | K77: 6 | L77: 1 | M77: 17 | P77: 56 | Q77: =Table1[[#This Row],[TopScore Order]]+Table1[[#This Row],[Top Wicket Takers]] -> 0
C78: Suresh Raina | D78: 2011-03-09 | P78: 57 | Q78: =Table1[[#This Row],[TopScore Order]]+Table1[[#This Row],[Top Wicket Takers]] -> 0
C79: Sreesanth | D79: 2011-03-09 | P79: 58 | Q79: =Table1[[#This Row],[TopScore Order]]+Table1[[#This Row],[Top Wicket Takers]] -> 0
C80: Sachin Tendulkar | D80: 2011-03-09 | E80: 27 | F80: 6 | G80: 0 | H80: 22 | I80: y | P80: 59 | Q80: =Table1[[#This Row],[TopScore Order]]+Table1[[#This Row],[Top Wicket Takers]] -> 0
C81: Yuvraj Singh | D81: 2011-03-09 | E81: 51 | F81: 7 | G81: 0 | H81: 73 | I81: n | J81: 2 | K81: 9 | L81: 1 | M81: 43 | N81: 1 | O81: 2 | P81: 60 | Q81: =Table1[[#This Row],[TopScore Order]]+Table1[[#This Row],[Top Wicket Takers]] -> 3
C82: MS Dhoni (c/wk) | D82: 2011-03-12 | E82: 12 | F82: 0 | G82: 0 | H82: 21 | I82: n | P82: 61 | Q82: =Table1[[#This Row],[TopScore Order]]+Table1[[#This Row],[Top Wicket Takers]] -> 0
C83: Virender Sehwag (vc) | D83: 2011-03-12 | E83: 73 | F83: 12 | G83: 0 | H83: 66 | I83: y | N83: 2 | P83: 62 | Q83: =Table1[[#This Row],[TopScore Order]]+Table1[[#This Row],[Top Wicket Takers]] -> 2
C84: Ravichandran Ashwin | D84: 2011-03-12 | P84: 63 | Q84: =Table1[[#This Row],[TopScore Order]]+Table1[[#This Row],[Top Wicket Takers]] -> 0
C85: Piyush Chawla | D85: 2011-03-12 | P85: 64 | Q85: =Table1[[#This Row],[TopScore Order]]+Table1[[#This Row],[Top Wicket Takers]] -> 0
C86: Gautam Gambhir | D86: 2011-03-12 | E86: 69 | F86: 7 | G86: 0 | H86: 75 | I86: y | N86: 3 | P86: 65 | Q86: =Table1[[#This Row],[TopScore Order]]+Table1[[#This Row],[Top Wicket Takers]] -> 3
C87: Harbhajan Singh | D87: 2011-03-12 | E87: 3 | F87: 0 | G87: 0 | H87: 9 | I87: y | J87: 3 | K87: 9 | L87: 0 | M87: 53 | O87: 1 | P87: 66 | Q87: =Table1[[#This Row],[TopScore Order]]+Table1[[#This Row],[Top Wicket Takers]] -> 1
C88: Zaheer Khan | D88: 2011-03-12 | E88: 0 | F88: 0 | G88: 0 | H88: 3 | I88: y | J88: 1 | K88: 10 | L88: 0 | M88: 43 | O88: 2 | P88: 67 | Q88: =Table1[[#This Row],[TopScore Order]]+Table1[[#This Row],[Top Wicket Takers]] -> 2
C89: Virat Kohli | D89: 2011-03-12 | E89: 1 | F89: 0 | G89: 0 | H89: 3 | I89: y | P89: 68 | Q89: =Table1[[#This Row],[TopScore Order]]+Table1[[#This Row],[Top Wicket Takers]] -> 0
C90: Ashish Nehra | D90: 2011-03-12 | E90: 0 | F90: 0 | G90: 0 | H90: 3 | I90: y | J90: 0 | K90: 9 | L90: 0 | M90: 65 | P90: 69 | Q90: =Table1[[#This Row],[TopScore Order]]+Table1[[#This Row],[Top Wicket Takers]] -> 0
C91: Munaf Patel | D91: 2011-03-12 | E91: 0 | F91: 0 | G91: 0 | H91: 1 | I91: y | J91: 2 | K91: 10 | L91: 0 | M91: 65 | O91: 3 | P91: 70 | Q91: =Table1[[#This Row],[TopScore Order]]+Table1[[#This Row],[Top Wicket Takers]] -> 3
C92: Yusuf Pathan | D92: 2011-03-12 | E92: 0 | F92: 0 | G92: 0 | H92: 2 | I92: y | J92: 0 | K92: 4 | L92: 0 | M92: 20 | P92: 71 | Q92: =Table1[[#This Row],[TopScore Order]]+Table1[[#This Row],[Top Wicket Takers]] -> 0
C93: Suresh Raina | D93: 2011-03-12 | P93: 72 | Q93: =Table1[[#This Row],[TopScore Order]]+Table1[[#This Row],[Top Wicket Takers]] -> 0
C94: Sreesanth | D94: 2011-03-12 | P94: 73 | Q94: =Table1[[#This Row],[TopScore Order]]+Table1[[#This Row],[Top Wicket Takers]] -> 0
C95: Sachin Tendulkar | D95: 2011-03-12 | E95: 111 | F95: 8 | G95: 3 | H95: 101 | I95: y | N95: 1 | P95: 74 | Q95: =Table1[[#This Row],[TopScore Order]]+Table1[[#This Row],[Top Wicket Takers]] -> 1
C96: Yuvraj Singh | D96: 2011-03-12 | E96: 12 | F96: 0 | G96: 1 | H96: 9 | I96: y | J96: 0 | K96: 8 | L96: 0 | M96: 47 | P96: 75 | Q96: =Table1[[#This Row],[TopScore Order]]+Table1[[#This Row],[Top Wicket Takers]] -> 0
C97: MS Dhoni (c/wk) | D97: 2011-03-20 | E97: 22 | F97: 1 | G97: 0 | H97: 30 | I97: y | P97: 76 | Q97: =Table1[[#This Row],[TopScore Order]]+Table1[[#This Row],[Top Wicket Takers]] -> 0
C98: Virender Sehwag (vc) | D98: 2011-03-20 | P98: 77 | Q98: =Table1[[#This Row],[TopScore Order]]+Table1[[#This Row],[Top Wicket Takers]] -> 0
C99: Ravichandran Ashwin | D99: 2011-03-20 | E99: 10 | F99: 1 | G99: 0 | H99: 7 | I99: n | J99: 2 | K99: 10 | L99: 0 | M99: 41 | O99: 3 | P99: 78 | Q99: =Table1[[#This Row],[TopScore Order]]+Table1[[#This Row],[Top Wicket Takers]] -> 3
C100: Piyush Chawla | D100: 2011-03-20 | P100: 79 | Q100: =Table1[[#This Row],[TopScore Order]]+Table1[[#This Row],[Top Wicket Takers]] -> 0
C101: Gautam Gambhir | D101: 2011-03-20 | E101: 22 | F101: 4 | G101: 0 | H101: 26 | I101: y | N101: 3 | P101: 80 | Q101: =Table1[[#This Row],[TopScore Order]]+Table1[[#This Row],[Top Wicket Takers]] -> 3
C102: Harbhajan Singh | D102: 2011-03-20 | E102: 3 | F102: 0 | G102: 0 | H102: 6 | I102: y | J102: 1 | K102: 9 | L102: 1 | M102: 35 | P102: 81 | Q102: =Table1[[#This Row],[TopScore Order]]+Table1[[#This Row],[Top Wicket Takers]] -> 0
C103: Zaheer Khan | D103: 2011-03-20 | E103: 5 | F103: 1 | G103: 0 | H103: 3 | I103: y | J103: 3 | K103: 6 | L103: 0 | M103: 26 | O103: 1 | P103: 82 | Q103: =Table1[[#This Row],[TopScore Order]]+Table1[[#This Row],[Top Wicket Takers]] -> 1
C104: Virat Kohli | D104: 2011-03-20 | E104: 59 | F104: 5 | G104: 0 | H104: 76 | I104: y | N104: 2 | P104: 83 | Q104: =Table1[[#This Row],[TopScore Order]]+Table1[[#This Row],[Top Wicket Takers]] -> 2
C105: Ashish Nehra | D105: 2011-03-20 | P105: 84 | Q105: =Table1[[#This Row],[TopScore Order]]+Table1[[#This Row],[Top Wicket Takers]] -> 0
C106: Munaf Patel | D106: 2011-03-20 | E106: 1 | F106: 0 | G106: 0 | H106: 2 | I106: y | J106: 0 | K106: 5 | L106: 0 | M106: 20 | P106: 85 | Q106: =Table1[[#This Row],[TopScore Order]]+Table1[[#This Row],[Top Wicket Takers]] -> 0
C107: Yusuf Pathan | D107: 2011-03-20 | E107: 11 | F107: 1 | G107: 0 | H107: 10 | I107: y | J107: 0 | K107: 7 | L107: 0 | M107: 28 | P107: 86 | Q107: =Table1[[#This Row],[TopScore Order]]+Table1[[#This Row],[Top Wicket Takers]] -> 0
C108: Suresh Raina | D108: 2011-03-20 | E108: 4 | F108: 0 | G108: 0 | H108: 8 | I108: y | J108: 1 | K108: 2 | L108: 0 | M108: 12 | P108: 87 | Q108: =Table1[[#This Row],[TopScore Order]]+Table1[[#This Row],[Top Wicket Takers]] -> 0
C109: Sreesanth | D109: 2011-03-20 | P109: 88 | Q109: =Table1[[#This Row],[TopScore Order]]+Table1[[#This Row],[Top Wicket Takers]] -> 0
C110: Sachin Tendulkar | D110: 2011-03-20 | E110: 2 | F110: 0 | G110: 0 | H110: 4 | I110: y | P110: 89 | Q110: =Table1[[#This Row],[TopScore Order]]+Table1[[#This Row],[Top Wicket Takers]] -> 0
C111: Yuvraj Singh | D111: 2011-03-20 | E111: 113 | F111: 10 | G111: 2 | H111: 123 | I111: y | J111: 2 | K111: 4 | L111: 0 | M111: 18 | N111: 1 | O111: 2 | P111: 90 | Q111: =Table1[[#This Row],[TopScore Order]]+Table1[[#This Row],[Top Wicket Takers]] -> 3
C112: MS Dhoni (c/wk) | D112: 2011-03-24 | E112: 7 | F112: 1 | G112: 0 | H112: 8 | I112: y | P112: 91 | Q112: =Table1[[#This Row],[TopScore Order]]+Table1[[#This Row],[Top Wicket Takers]] -> 0
C113: Virender Sehwag (vc) | D113: 2011-03-24 | E113: 15 | F113: 2 | G113: 0 | H113: 22 | I113: y | P113: 92 | Q113: =Table1[[#This Row],[TopScore Order]]+Table1[[#This Row],[Top Wicket Takers]] -> 0
C114: Ravichandran Ashwin | D114: 2011-03-24 | J114: 2 | K114: 10 | L114: 0 | M114: 52 | O114: 1 | P114: 93 | Q114: =Table1[[#This Row],[TopScore Order]]+Table1[[#This Row],[Top Wicket Takers]] -> 1
C115: Piyush Chawla | D115: 2011-03-24 | P115: 94 | Q115: =Table1[[#This Row],[TopScore Order]]+Table1[[#This Row],[Top Wicket Takers]] -> 0
C116: Gautam Gambhir | D116: 2011-03-24 | E116: 50 | F116: 2 | G116: 0 | H116: 64 | I116: y | N116: 3 | P116: 95 | Q116: =Table1[[#This Row],[TopScore Order]]+Table1[[#This Row],[Top Wicket Takers]] -> 3
C117: Harbhajan Singh | D117: 2011-03-24 | J117: 0 | K117: 10 | L117: 0 | M117: 50 | P117: 96 | Q117: =Table1[[#This Row],[TopScore Order]]+Table1[[#This Row],[Top Wicket Takers]] -> 0
C118: Zaheer Khan | D118: 2011-03-24 | J118: 2 | K118: 10 | L118: 0 | M118: 53 | O118: 2 | P118: 97 | Q118: =Table1[[#This Row],[TopScore Order]]+Table1[[#This Row],[Top Wicket Takers]] -> 2
C119: Virat Kohli | D119: 2011-03-24 | E119: 24 | F119: 1 | G119: 0 | H119: 33 | I119: y | J119: 0 | K119: 1 | L119: 0 | M119: 6 | P119: 98 | Q119: =Table1[[#This Row],[TopScore Order]]+Table1[[#This Row],[Top Wicket Takers]] -> 0
C120: Ashish Nehra | D120: 2011-03-24 | P120: 99 | Q120: =Table1[[#This Row],[TopScore Order]]+Table1[[#This Row],[Top Wicket Takers]] -> 0
C121: Munaf Patel | D121: 2011-03-24 | J121: 0 | K121: 7 | L121: 0 | M121: 44 | P121: 100 | Q121: =Table1[[#This Row],[TopScore Order]]+Table1[[#This Row],[Top Wicket Takers]] -> 0
C122: Yusuf Pathan | D122: 2011-03-24 | P122: 101 | Q122: =Table1[[#This Row],[TopScore Order]]+Table1[[#This Row],[Top Wicket Takers]] -> 0
C123: Suresh Raina | D123: 2011-03-24 | E123: 34 | F123: 2 | G123: 1 | H123: 28 | I123: n | P123: 102 | Q123: =Table1[[#This Row],[TopScore Order]]+Table1[[#This Row],[Top Wicket Takers]] -> 0
C124: Sreesanth | D124: 2011-03-24 | P124: 103 | Q124: =Table1[[#This Row],[TopScore Order]]+Table1[[#This Row],[Top Wicket Takers]] -> 0
C125: Sachin Tendulkar | D125: 2011-03-24 | E125: 53 | F125: 7 | G125: 0 | H125: 68 | I125: y | J125: 0 | K125: 2 | L125: 0 | M125: 9 | N125: 2 | O125: 3 | P125: 104 | Q125: =Table1[[#This Row],[TopScore Order]]+Table1[[#This Row],[Top Wicket Takers]] -> 5
C126: Yuvraj Singh | D126: 2011-03-24 | E126: 57 | F126: 8 | G126: 0 | H126: 65 | I126: n | J126: 2 | K126: 10 | L126: 0 | M126: 44 | N126: 1 | P126: 105 | Q126: =Table1[[#This Row],[TopScore Order]]+Table1[[#This Row],[Top Wicket Takers]] -> 1
C127: MS Dhoni (c/wk) | D127: 2011-03-30 | E127: 25 | F127: 2 | G127: 0 | H127: 42 | I127: y | P127: 106 | Q127: =Table1[[#This Row],[TopScore Order]]+Table1[[#This Row],[Top Wicket Takers]] -> 0
C128: Virender Sehwag (vc) | D128: 2011-03-30 | E128: 38 | F128: 9 | G128: 0 | H128: 25 | I128: y | N128: 2 | P128: 107 | Q128: =Table1[[#This Row],[TopScore Order]]+Table1[[#This Row],[Top Wicket Takers]] -> 2
C129: Ravichandran Ashwin | D129: 2011-03-30 | P129: 108 | Q129: =Table1[[#This Row],[TopScore Order]]+Table1[[#This Row],[Top Wicket Takers]] -> 0
C130: Piyush Chawla | D130: 2011-03-30 | P130: 109 | Q130: =Table1[[#This Row],[TopScore Order]]+Table1[[#This Row],[Top Wicket Takers]] -> 0
C131: Gautam Gambhir | D131: 2011-03-30 | E131: 27 | F131: 2 | G131: 0 | H131: 32 | I131: y | P131: 110 | Q131: =Table1[[#This Row],[TopScore Order]]+Table1[[#This Row],[Top Wicket Takers]] -> 0
C132: Harbhajan Singh | D132: 2011-03-30 | E132: 12 | F132: 2 | G132: 0 | H132: 15 | I132: y | J132: 2 | K132: 10 | L132: 0 | M132: 43 | O132: 3 | P132: 111 | Q132: =Table1[[#This Row],[TopScore Order]]+Table1[[#This Row],[Top Wicket Takers]] -> 3
C133: Zaheer Khan | D133: 2011-03-30 | E133: 9 | F133: 1 | G133: 0 | H133: 10 | I133: y | J133: 2 | K133: 10 | L133: 0 | M133: 58 | P133: 112 | Q133: =Table1[[#This Row],[TopScore Order]]+Table1[[#This Row],[Top Wicket Takers]] -> 0
C134: Virat Kohli | D134: 2011-03-30 | E134: 9 | F134: 0 | G134: 0 | H134: 21 | I134: y | P134: 113 | Q134: =Table1[[#This Row],[TopScore Order]]+Table1[[#This Row],[Top Wicket Takers]] -> 0
C135: Ashish Nehra | D135: 2011-03-30 | E135: 1 | F135: 0 | G135: 0 | H135: 2 | I135: y | J135: 2 | K135: 10 | L135: 0 | M135: 33 | O135: 1 | P135: 114 | Q135: =Table1[[#This Row],[TopScore Order]]+Table1[[#This Row],[Top Wicket Takers]] -> 1
C136: Munaf Patel | D136: 2011-03-30 | E136: 0 | F136: 0 | G136: 0 | H136: 0 | I136: n | J136: 2 | K136: 10 | L136: 1 | M136: 40 | O136: 2 | P136: 115 | Q136: =Table1[[#This Row],[TopScore Order]]+Table1[[#This Row],[Top Wicket Takers]] -> 2
C137: Yusuf Pathan | D137: 2011-03-30 | P137: 116 | Q137: =Table1[[#This Row],[TopScore Order]]+Table1[[#This Row],[Top Wicket Takers]] -> 0
C138: Suresh Raina | D138: 2011-03-30 | E138: 36 | F138: 3 | G138: 0 | H138: 39 | I138: n | N138: 3 | P138: 117 | Q138: =Table1[[#This Row],[TopScore Order]]+Table1[[#This Row],[Top Wicket Takers]] -> 3
C139: Sreesanth | D139: 2011-03-30 | P139: 118 | Q139: =Table1[[#This Row],[TopScore Order]]+Table1[[#This Row],[Top Wicket Takers]] -> 0
C140: Sachin Tendulkar | D140: 2011-03-30 | E140: 85 | F140: 11 | G140: 0 | H140: 115 | I140: y | N140: 1 | P140: 119 | Q140: =Table1[[#This Row],[TopScore Order]]+Table1[[#This Row],[Top Wicket Takers]] -> 1
C141: Yuvraj Singh | D141: 2011-03-30 | E141: 0 | F141: 0 | G141: 0 | H141: 1 | I141: y | J141: 2 | K141: 10 | L141: 1 | M141: 57 | P141: 120 | Q141: =Table1[[#This Row],[TopScore Order]]+Table1[[#This Row],[Top Wicket Takers]] -> 0
C142: MS Dhoni (c/wk) | D142: 2011-04-02 | E142: 91 | F142: 8 | G142: 2 | H142: 79 | I142: n | N142: 2 | P142: 121 | Q142: =Table1[[#This Row],[TopScore Order]]+Table1[[#This Row],[Top Wicket Takers]] -> 2
C143: Virender Sehwag (vc) | D143: 2011-04-02 | E143: 0 | F143: 0 | G143: 0 | H143: 2 | I143: y | P143: 122 | Q143: =Table1[[#This Row],[TopScore Order]]+Table1[[#This Row],[Top Wicket Takers]] -> 0
C144: Ravichandran Ashwin | D144: 2011-04-02 | P144: 123 | Q144: =Table1[[#This Row],[TopScore Order]]+Table1[[#This Row],[Top Wicket Takers]] -> 0
C145: Piyush Chawla | D145: 2011-04-02 | P145: 124 | Q145: =Table1[[#This Row],[TopScore Order]]+Table1[[#This Row],[Top Wicket Takers]] -> 0
C146: Gautam Gambhir | D146: 2011-04-02 | E146: 97 | F146: 9 | G146: 0 | H146: 122 | I146: y | N146: 1 | P146: 125 | Q146: =Table1[[#This Row],[TopScore Order]]+Table1[[#This Row],[Top Wicket Takers]] -> 1
C147: Harbhajan Singh | D147: 2011-04-02 | J147: 1 | K147: 10 | L147: 0 | M147: 50 | P147: 126 | Q147: =Table1[[#This Row],[TopScore Order]]+Table1[[#This Row],[Top Wicket Takers]] -> 0
C148: Zaheer Khan | D148: 2011-04-02 | J148: 2 | K148: 10 | L148: 3 | M148: 60 | O148: 2 | P148: 127 | Q148: =Table1[[#This Row],[TopScore Order]]+Table1[[#This Row],[Top Wicket Takers]] -> 2
C149: Virat Kohli | D149: 2011-04-02 | E149: 35 | F149: 4 | G149: 0 | H149: 49 | I149: y | J149: 0 | K149: 1 | L149: 0 | M149: 6 | N149: 3 | P149: 128 | Q149: =Table1[[#This Row],[TopScore Order]]+Table1[[#This Row],[Top Wicket Takers]] -> 3
C150: Ashish Nehra | D150: 2011-04-02 | P150: 129 | Q150: =Table1[[#This Row],[TopScore Order]]+Table1[[#This Row],[Top Wicket Takers]] -> 0
C151: Munaf Patel | D151: 2011-04-02 | J151: 0 | K151: 9 | L151: 0 | M151: 41 | O151: 3 | P151: 130 | Q151: =Table1[[#This Row],[TopScore Order]]+Table1[[#This Row],[Top Wicket Takers]] -> 3
C152: Yusuf Pathan | D152: 2011-04-02 | P152: 131 | Q152: =Table1[[#This Row],[TopScore Order]]+Table1[[#This Row],[Top Wicket Takers]] -> 0
C153: Suresh Raina | D153: 2011-04-02 | P153: 132 | Q153: =Table1[[#This Row],[TopScore Order]]+Table1[[#This Row],[Top Wicket Takers]] -> 0
C154: Sreesanth | D154: 2011-04-02 | J154: 0 | K154: 8 | L154: 0 | M154: 52 | P154: 133 | Q154: =Table1[[#This Row],[TopScore Order]]+Table1[[#This Row],[Top Wicket Takers]] -> 0
C155: Sachin Tendulkar | D155: 2011-04-02 | E155: 18 | F155: 2 | G155: 0 | H155: 14 | I155: y | J155: 0 | K155: 2 | L155: 0 | M155: 12 | P155: 134 | Q155: =Table1[[#This Row],[TopScore Order]]+Table1[[#This Row],[Top Wicket Takers]] -> 0
C156: Yuvraj Singh | D156: 2011-04-02 | E156: 21 | F156: 2 | G156: 0 | H156: 24 | I156: n | J156: 2 | K156: 10 | L156: 0 | M156: 49 | O156: 1 | P156: 135 | Q156: =Table1[[#This Row],[TopScore Order]]+Table1[[#This Row],[Top Wicket Takers]] -> 1
A159: 1 | B159: Top 10 total tournament Run Scorers | E159: 2 | F159: Wicket Takers (tournament) | M159: 3 | N159: Catch Takers (tournament) | R159: 4 | S159: Partnerships (tournament)
B161: Name | C161: Country | D161: Score | G161: Name | H161: Country | I161: Wickets | J161: Overs Bowled | K161: Runs Given | L161: Maidens | O161: Name | P161: Country | Q161: Catches | T161: B1 | U161: B2 | V161: Country | W161: Runs | X161: Balls | Y161: Against | Z161: Wicket
A162: 1 | B162: TM Dilshan | C162: Sri Lanka | D162: 500 | F162: 1 | G162: Shahid Afridi | H162: Pakistan | I162: 21 | J162: 74.3 | K162: 270 | L162: 4 | N162: 1 | O162: DPMD Jayawardene (SL) | P162: Sri Lanka | Q162: 8 | S162: 1 | T162: WU Tharanga | U162: TM Dilshan | V162: Sri Lanka | W162: 282 | X162: 268 | Y162: Zimbabwe | Z162: 1st
A163: 2 | B163: SR Tendulkar | C163: India | D163: 482 | F163: 2 | G163: Z Khan | H163: India | I163: 21 | J163: 81.3 | K163: 394 | L163: 4 | N163: 2 | O163: JH Kallis (SA) | P163: Pakistan | Q163: 6 | S163: 2 | T163: TM Dilshan | U163: WU Tharanga | V163: Sri Lanka | W163: 231 | X163: 237 | Y163: England | Z163: 1st
A164: 3 | B164: KC Sangakkara | C164: Sri Lanka | D164: 465 | F164: 3 | G164: TG Southee | H164: New Zealand | I164: 18 | J164: 72.2 | K164: 312 | L164: 9 | N164: 3 | O164: RJ Peterson (SA) | P164: Sri Lanka | Q164: 6 | S164: 3 | T164: HM Amla | U164: AB de Villiers | V164: South Africa | W164: 221 | X164: 176 | Y164: Netherlands | Z164: 3rd
A165: 4 | B165: IJL Trott | C165: England | D165: 422 | F165: 4 | G165: RJ Peterson | H165: South Africa | I165: 15 | J165: 56 | K165: 238 | L165: 5 | N165: 4 | O165: KA Pollard (WI) | P165: New Zealand | Q165: 6 | S165: 4 | T165: V Sehwag | U165: V Kohli | V165: India | W165: 203 | X165: 145 | Y165: Bangladesh | Z165: 3rd
A166: 5 | B166: WU Tharanga | C166: Sri Lanka | D166: 395 | F166: 5 | G166: M Muralitharan | H166: Sri Lanka | I166: 15 | J166: 71 | K166: 291 | L166: 1 | N166: 5 | O166: TM Dilshan (SL) | P166: Canada | Q166: 6 | S166: 5 | T166: BJ Haddin | U166: SR Watson | V166: Australia | W166: 183 | X166: 173 | Y166: Canada | Z166: 1st
A167: 6 | B167: G Gambhir | C167: India | D167: 393 | F167: 6 | G167: Yuvraj Singh | H167: India | I167: 15 | J167: 75 | K167: 377 | L167: 2 | N167: 6 | O167: JM Davison (Can) | P167: South Africa | Q167: 5 | S167: 6 | T167: CR Ervine | U167: T Taibu | V167: Zimbabwe | W167: 181 | X167: 167 | Y167: Canada | Z167: 3rd
A168: 7 | B168: V Sehwag | C168: India | D168: 380 | F168: 7 | G168: Imran Tahir | H168: South Africa | I168: 14 | J168: 39.3 | K168: 150 | L168: 2 | N168: 7 | O168: AN Kervezee (Neth) | P168: West Indies | Q168: 5 | S168: 7 | T168: KC Sangakkara | U168: DPMD Jayawardene | V168: Sri Lanka | W168: 179 | X168: 137 | Y168: Canada | Z168: 3rd
A169: 8 | B169: Yuvraj Singh | C169: India | D169: 362 | F169: 8 | G169: Umar Gul | H169: Pakistan | I169: 14 | J169: 60.3 | K169: 272 | L169: 5 | N169: 8 | O169: JDP Oram (NZ) | P169: England | Q169: 5 | S169: 8 | T169: WTS Porterfield | U169: PR Stirling | V169: Ireland | W169: 177 | X169: 162 | Y169: Netherlands | Z169: 1st
A170: 9 | B170: AB de Villiers | C170: South Africa | D170: 353 | F170: 9 | G170: KAJ Roach | H170: West Indies | I170: 13 | J170: 46 | K170: 195 | L170: 2 | N170: 9 | O170: GC Smith (SA) | P170: India | Q170: 5 | S170: 9 | T170: IR Bell | U170: AJ Strauss | V170: England | W170: 170 | X170: 156 | Y170: India | Z170: 3rd
A171: 10 | B171: AJ Strauss | C171: England | D171: 334 | F171: 10 | G171: B Lee | H171: Australia | I171: 13 | J171: 54.2 | K171: 235 | L171: 6 | N171: 10 | O171: Shahid Afridi (Pak) | P171: West Indies | Q171: 5 | S171: 10 | T171: IR Bell | U171: IJL Trott | V171: England | W171: 167 | X171: 156 | Y171: Ireland | Z171: 3rd
A174: Top 5
B175: Highest Individual Match Scores | G175: Highest Individual scorers in a single match | P175: Highest Wicket Takers in a single match
B176: Country name | C176: Score | D176: Against | E176: Match Result (WON/LOST/TIED/NO RESULT) | H176: Name | I176: Country | J176: Score | K176: Againsts | L176: 4s | M176: 6s | N176: balls | Q176: Name | R176: Country | S176: Wickets | T176: Overs Bowled | U176: Runs Given | V176: Maidens
A177: 1 | B177: India | C177: 370 | D177: Bangladesh | E177: WON | G177: 1 | H177: V Sehwag | I177: India | J177: 175 | K177: Bangladesh | L177: 14 | M177: 5 | N177: 140 | P177: 1 | Q177: KAJ Roach | R177: West Indies | S177: 6 | T177: 8.3 | U177: 27 | V177: 0
A178: 2 | B178: New Zealand | C178: 358 | D178: Canada | E178: WON | G178: 2 | H178: AJ Strauss | I178: England | J178: 158 | K178: India | L178: 18 | M178: 1 | N178: 145 | P178: 2 | Q178: SL Malinga | R178: Sri Lanka | S178: 6 | T178: 7.4 | U178: 38 | V178: 0
A179: 3 | B179: South Africa | C179: 351 | D179: Netherlands | E179: WON | G179: 3 | H179: TM Dilshan | I179: Sri Lanka | J179: 144 | K179: Zimbabwe | L179: 16 | M179: 1 | N179: 131 | P179: 3 | Q179: Shahid Afridi | R179: Pakistan | S179: 5 | T179: 8 | U179: 16 | V179: 3
A180: 4 | B180: India | C180: 338 | D180: England | E180: TIED | G180: 4 | H180: AB de Villiers | I180: South Africa | J180: 134 | K180: Netherlands | L180: 13 | M180: 4 | N180: 98 | P180: 4 | Q180: TT Bresnan | R180: England | S180: 5 | T180: 10 | U180: 48 | V180: 1
A181: 5 | B181: Sri Lanka | C181: 332 | D181: Canada | E181: WON | G181: 5 | H181: LRPL Taylor | I181: New Zealand | J181: 131 | K181: Pakistan | L181: 8 | M181: 7 | N181: 124 | P181: 5 | Q181: Shahid Afridi | R181: Pakistan | S181: 5 | T181: 10 | U181: 23 | V181: 0

Sheet Calculations (hidden)
O3: Best
O4: Batting | P4: Runs
C5: Total Score in all matches Taken | D5: =SUM(Data!H4:H12) -> 2471 | F5: runs | G5: =D5&" "&F5 -> 2471 runs | O5: =TRIM(Data!B162) & " ("&VLOOKUP(Data!C162,Flags!$J$2:$K$15,2,FALSE)&")" -> TM Dilshan (SL) | P5: =Data!D162 -> 500 | R5: =TRIM(Data!G162) & " ("&VLOOKUP(Data!H162,Flags!$J$2:$K$15,2,FALSE)&")" -> Shahid Afridi (Pak) | S5: =Data!I162 -> 21 | T5: =S5&" wkts/"&Data!J162&" ovrs" -> 21 wkts/74.3 ovrs
C6: Total Score in all matches Given | D6: =SUM(Data!K4:K12) -> 2270 | F6: runs given | G6: 2270 runs given | O6: =TRIM(Data!B163) & " ("&VLOOKUP(Data!C163,Flags!$J$2:$K$15,2,FALSE)&")" -> SR Tendulkar (Ind) | P6: =Data!D163 -> 482 | R6: =TRIM(Data!G163) & " ("&VLOOKUP(Data!H163,Flags!$J$2:$K$15,2,FALSE)&")" -> Z Khan (Ind) | S6: =Data!I163 -> 21 | T6: =S6&"/"&Data!J163 -> 21/81.3
C7: Total Wickets Taken | D7: =SUM(Data!L4:L12) -> 76 | F7: wickets taken | G7: ="We took "&D7&" wickets" -> We took 76 wickets | O7: =TRIM(Data!B164) & " ("&VLOOKUP(Data!C164,Flags!$J$2:$K$15,2,FALSE)&")" -> KC Sangakkara (SL) | P7: =Data!D164 -> 465 | R7: =TRIM(Data!G164) & " ("&VLOOKUP(Data!H164,Flags!$J$2:$K$15,2,FALSE)&")" -> TG Southee (NZ) | S7: =Data!I164 -> 18 | T7: =S7&"/"&Data!J164 -> 18/72.2
C8: Total Wickets Lost | D8: =SUM(Data!I4:I12) -> 62 | F8: wickets lost | G8: 62 wickets lost | O8: =TRIM(Data!B165) & " ("&VLOOKUP(Data!C165,Flags!$J$2:$K$15,2,FALSE)&")" -> IJL Trott (Eng) | P8: =Data!D165 -> 422 | R8: =TRIM(Data!G165) & " ("&VLOOKUP(Data!H165,Flags!$J$2:$K$15,2,FALSE)&")" -> RJ Peterson (RSA) | S8: =Data!I165 -> 15 | T8: =S8&"/"&Data!J165 -> 15/56
C9: Total Matches | D9: 9 | F9: matches | G9: =D9&" "&F9 -> 9 matches | I9: ="and "&G13&", "&G14&" and "&G15 -> and and 13 half-centuries, 235 fours and 57 sixes | O9: =TRIM(Data!B166) & " ("&VLOOKUP(Data!C166,Flags!$J$2:$K$15,2,FALSE)&")" -> WU Tharanga (SL) | P9: =Data!D166 -> 395 | R9: =TRIM(Data!G166) & " ("&VLOOKUP(Data!H166,Flags!$J$2:$K$15,2,FALSE)&")" -> M Muralitharan (SL) | S9: =Data!I166 -> 15 | T9: =S9&"/"&Data!J166 -> 15/71
C10: Won | D10: =COUNTIF(Data!P4:P12,"WON") -> 7 | F10: won | G10: =D10&" "&F10 -> 7 won | O10: =TRIM(Data!B167) & " ("&VLOOKUP(Data!C167,Flags!$J$2:$K$15,2,FALSE)&")" -> G Gambhir (Ind) | P10: =Data!D167 -> 393 | R10: =TRIM(Data!G167) & " ("&VLOOKUP(Data!H167,Flags!$J$2:$K$15,2,FALSE)&")" -> Yuvraj Singh (Ind) | S10: =Data!I167 -> 15 | T10: =S10&"/"&Data!J167 -> 15/75
C11: Players | D11: =16 -> 16 | F11: players | G11: 16 players | O11: =TRIM(Data!B168) & " ("&VLOOKUP(Data!C168,Flags!$J$2:$K$15,2,FALSE)&")" -> V Sehwag (Ind) | P11: =Data!D168 -> 380 | R11: =TRIM(Data!G168) & " ("&VLOOKUP(Data!H168,Flags!$J$2:$K$15,2,FALSE)&")" -> Imran Tahir (RSA) | S11: =Data!I168 -> 14 | T11: =S11&"/"&Data!J168 -> 14/39.3
C12: Centuries | D12: =COUNTIF(Table1[Runs],">99") -> 5 | F12: centuries | G12: 5 centuries | O12: =TRIM(Data!B169) & " ("&VLOOKUP(Data!C169,Flags!$J$2:$K$15,2,FALSE)&")" -> Yuvraj Singh (Ind) | P12: =Data!D169 -> 362 | R12: =TRIM(Data!G169) & " ("&VLOOKUP(Data!H169,Flags!$J$2:$K$15,2,FALSE)&")" -> Umar Gul (Pak) | S12: =Data!I169 -> 14 | T12: =S12&"/"&Data!J169 -> 14/60.3
C13: Half-centuries | D13: =COUNTIF(Table1[Runs],">49")-D12 -> 13 | F13: half-centuries | G13: ="and "&D13&" "&F13 -> and 13 half-centuries | O13: =TRIM(Data!B170) & " ("&VLOOKUP(Data!C170,Flags!$J$2:$K$15,2,FALSE)&")" -> AB de Villiers (RSA) | P13: =Data!D170 -> 353 | R13: =TRIM(Data!G170) & " ("&VLOOKUP(Data!H170,Flags!$J$2:$K$15,2,FALSE)&")" -> KAJ Roach (WI) | S13: =Data!I170 -> 13 | T13: =S13&"/"&Data!J170 -> 13/46
C14: Fours | D14: =SUM(Table1[4s]) -> 235 | F14: fours | G14: 235 fours | O14: =TRIM(Data!B171) & " ("&VLOOKUP(Data!C171,Flags!$J$2:$K$15,2,FALSE)&")" -> AJ Strauss (Eng) | P14: =Data!D171 -> 334 | R14: =TRIM(Data!G171) & " ("&VLOOKUP(Data!H171,Flags!$J$2:$K$15,2,FALSE)&")" -> B Lee (Aus) | S14: =Data!I171 -> 13 | T14: =S14&"/"&Data!J171 -> 13/54.2
C15: Sixes | D15: =SUM(Table1[6s]) -> 57 | F15: sixes | G15: 57 sixes | I15: 2/3rd sixes by Sachin, Sehwag & Yuvraj
C16: Balls Faced | D16: =SUM(Table1[Balls faced]) -> 2564 | F16: balls faced | G16: 2564 balls faced | O16: Top 3 Batsmen | Q16: Sachin, Gambhir & Sehwag | T16: Top 3 Wicket Takers | V16: Zaheer, Yuvraj & Munaf
C17: Venue | D17: 8 | E17: in | F17: venues | G17: =E17&D17&" "&F17 -> in 8 venues | O17: =Data!B163 -> SR Tendulkar | Q17: =Data!D163 -> 482 | T17: Z Khan | U17: India | V17: 21
C18: Overs Bowled | D18: =Data!M15 -> 437 | F18: overs bowled | G18: ="in "&E18&D18&" "&F18 -> in 437 overs bowled | O18: =Data!B167 -> G Gambhir | Q18: =Data!D167 -> 393 | T18: Yuvraj Singh | U18: India | V18: 15
C19: Batted First | D19: 6 | F19: batted first | G19: ="We "&" "&F19&" "&D19&" times" -> We batted first 6 times | O19: =Data!B168 -> V Sehwag | Q19: =Data!D168 -> 380 | T19: Munaf Patel | U19: India | V19: 11
Q20: =SUM(Q17:Q19) -> 1255 | V20: =SUM(V17:V19) -> 47
B21: Nickname | C21: Summary by Player | D21: 6s | F21: Summary by Selected Match | Q21: ="Batsmen - "&Q16&" scored "&TEXT(Q20/D5,"0%")&" of runs" -> Batsmen - Sachin, Gambhir & Sehwag scored 51% of runs | V21: ="Bowlers - "&V16&" took "&TEXT(V20/D7,"0%")&" wickets" -> Bowlers - Zaheer, Yuvraj & Munaf took 62% wickets
B22: Dhoni | C22: MS Dhoni (c/wk) | D22: =SUMIF(Table1[Name],C22,Table1[6s]) -> 5 | F22: Selected Match | H22: 9
B23: Sehwag | C23: Virender Sehwag (vc) | D23: =SUMIF(Table1[Name],C23,Table1[6s]) -> 13 | F23: Match Date | G23: =INDEX(Data!C4:C12,valSelMatch) -> 40635
B24: Ashwin | C24: Ravichandran Ashwin | D24: =SUMIF(Table1[Name],C24,Table1[6s]) -> 0 | F24: Basic Data
B25: Piyush | C25: Piyush Chawla | D25: =SUMIF(Table1[Name],C25,Table1[6s]) -> 0 | F25: 1 | G25: 2 | H25: 3 | I25: 4 | J25: 5 | K25: 6 | L25: 7 | M25: 8 | N25: 9 | O25: 10 | P25: 11 | Q25: 12 | R25: 13 | S25: 14 | T25: 15 | U25: 16 | V25: 17 | W25: 18 | X25: 19 | Y25: 20 | Z25: 21 | AA25: 22 | AB25: 23 | AC25: 24 | AD25: 25 | AE25: 26 | AF25: 27
B26: Gambhir | C26: Gautam Gambhir | D26: =SUMIF(Table1[Name],C26,Table1[6s]) -> 5 | K26: India Score | N26: Opposition Score | U26: India | AA26: Opposition
B27: Harbhajan | C27: Harbhajan Singh | D27: =SUMIF(Table1[Name],C27,Table1[6s]) -> 0 | F27: Date of Match | G27: Round | H27: Venue (Stadium Name) | I27: Location (City) | J27: with whom (country) | K27: Score | L27: Wickets | M27: Overs Played | N27: Score | O27: Wickets | P27: Overs Played | Q27: Who Won the Toss | R27: Who batted first | S27: Match Result (WON / LOST / TIED) | T27: Man of the Match | U27: Sixes | V27: Fours | W27: High Scorer | X27: Highest Score | Y27: Highest Wicket Taker | Z27: Highest Wickets | AA27: Sixes | AB27: Fours | AC27: High Scorer | AD27: Highest Score | AE27: Highest Wicket Taker | AF27: Highest Wickets
B28: Zaheer | C28: Zaheer Khan | D28: =SUMIF(Table1[Name],C28,Table1[6s]) -> 0 | F28: =INDEX(Data!C4:AC12,valSelMatch,$F$25:$AF$25) -> 40635 | G28: Final | H28: Wankhede Stadium | I28: Mumbai | J28: Sri Lanka | K28: 277 | L28: 4 | M28: 48.2 | N28: 274 | O28: 6 | P28: 50 | Q28: Sri Lanka | R28: Sri Lanka | S28: WON | T28: MS Dhoni (c/wk) | U28: 2 | V28: 35 | W28: Gautam Gambhir | X28: 97 | Y28: Zaheer Khan | Z28: 2 | AA28: 2 | AB28: 27 | AC28: DPMD Jayawardene | AD28: 103 | AE28: SL Malinga | AF28: 2
B29: Kohli | C29: Virat Kohli | D29: =SUMIF(Table1[Name],C29,Table1[6s]) -> 3 | F29: Heading | G29: =G28&" match between India & " &J28&" played at "&H28&", "&I28 -> Final match between India & Sri Lanka played at Wankhede Stadium, Mumbai
B30: Nehra | C30: Ashish Nehra | D30: =SUMIF(Table1[Name],C30,Table1[6s]) -> 0 | F30: Result | G30: =INDEX(Data!A4:A12,valSelMatch) -> India won by 6 wickets
B31: Munaf | C31: Munaf Patel | D31: =SUMIF(Table1[Name],C31,Table1[6s]) -> 0 | F31: Toss | G31: =Q28&" won the toss and choose to "&IF(R28<>Q28,"bowl", "bat")&" first" -> Sri Lanka won the toss and choose to bat first | Q31: Display
B32: Yusuf | C32: Yusuf Pathan | D32: =SUMIF(Table1[Name],C32,Table1[6s]) -> 5 | F32: First Batting Team | G32: =R28 -> Sri Lanka | Q32: Batting | Y32: Bowling
B33: Raina | C33: Suresh Raina | D33: =SUMIF(Table1[Name],C33,Table1[6s]) -> 1 | F33: Score | G33: =K28&"/"&L28&" in "&M28&" overs" -> 277/4 in 48.2 overs | H33: =N28&"/"&O28&" in "&P28&" overs" -> 274/6 in 50 overs
B34: Sreesanth | C34: Sreesanth | D34: =SUMIF(Table1[Name],C34,Table1[6s]) -> 0 | F34: Batting: | G34: 1 | H34: 2 | I34: 3 | K34: Bowling | L34: 1 | M34: 2 | N34: 3 | R34: Runs | T34: Balls | U34: 4s | V34: 6s | W34: SR | Z34: Overs | AA34: M | AB34: R | AC34: W | AD34: RPO
B35: Sachin | C35: Sachin Tendulkar | D35: =SUMIF(Table1[Name],C35,Table1[6s]) -> 13 | G35: =INDEX(Table1[Name],SUMIFS(Table1[Number],Table1[Match Date],valSelMatchDate,Table1[TopScore Order],G$34)) -> Gautam Gambhir | H35: =INDEX(Table1[Name],SUMIFS(Table1[Number],Table1[Match Date],valSelMatchDate,Table1[TopScore Order],H$34)) -> MS Dhoni (c/wk) | I35: =INDEX(Table1[Name],SUMIFS(Table1[Number],Table1[Match Date],valSelMatchDate,Table1[TopScore Order],I$34)) -> Virat Kohli | L35: =INDEX(Table1[Name],SUMIFS(Table1[Number],Table1[Match Date],valSelMatchDate,Table1[Top Wicket Takers],L$34)) -> Yuvraj Singh | M35: =INDEX(Table1[Name],SUMIFS(Table1[Number],Table1[Match Date],valSelMatchDate,Table1[Top Wicket Takers],M$34)) -> Zaheer Khan | N35: =INDEX(Table1[Name],SUMIFS(Table1[Number],Table1[Match Date],valSelMatchDate,Table1[Top Wicket Takers],N$34)) -> Munaf Patel | P35: 1 | Q35: =INDEX($B$22:$B$36,MATCH(INDEX(Table1[Name],SUMIFS(Table1[Number],Table1[Match Date],valSelMatchDate,Table1[TopScore Order],$P35)),$C$22:$C$36,0)) -> Gambhir | R35: =INDEX(Table1[Runs],SUMIFS(Table1[Number],Table1[Match Date],valSelMatchDate,Table1[TopScore Order],$P35)) -> 97 | S35: =IF(INDEX(Table1[Got out (Yes / No)],SUMIFS(Table1[Number],Table1[Match Date],valSelMatchDate,Table1[TopScore Order],$P35))="n","*","") ->  | T35: =INDEX(Table1[Balls faced],SUMIFS(Table1[Number],Table1[Match Date],valSelMatchDate,Table1[TopScore Order],$P35)) -> 122 | U35: =INDEX(Table1[4s],SUMIFS(Table1[Number],Table1[Match Date],valSelMatchDate,Table1[TopScore Order],$P35)) -> 9 | V35: =INDEX(Table1[6s],SUMIFS(Table1[Number],Table1[Match Date],valSelMatchDate,Table1[TopScore Order],$P35)) -> 0 | W35: =INDEX(Table1[Runs],SUMIFS(Table1[Number],Table1[Match Date],valSelMatchDate,Table1[TopScore Order],$P35))/T35 -> 0.7950819672 | X35: 1 | Y35: =INDEX($B$22:$B$36,MATCH(INDEX(Table1[Name],SUMIFS(Table1[Number],Table1[Match Date],valSelMatchDate,Table1[Top Wicket Takers],$X35)),$C$22:$C$36,0)) -> Yuvraj | Z35: =INDEX(Table1[Overs Bowled (round figures only)],SUMIFS(Table1[Number],Table1[Match Date],valSelMatchDate,Table1[Top Wicket Takers],$X35)) -> 10 | AA35: =INDEX(Table1[Maidens],SUMIFS(Table1[Number],Table1[Match Date],valSelMatchDate,Table1[Top Wicket Takers],$X35)) -> 0 | AB35: =INDEX(Table1[Runs Given],SUMIFS(Table1[Number],Table1[Match Date],valSelMatchDate,Table1[Top Wicket Takers],$X35)) -> 49 | AC35: =INDEX(Table1[Wickets],SUMIFS(Table1[Number],Table1[Match Date],valSelMatchDate,Table1[Top Wicket Takers],$X35)) -> 2 | AD35: =AB35/Z35 -> 4.9
B36: Yuvraj | C36: Yuvraj Singh | D36: =SUMIF(Table1[Name],C36,Table1[6s]) -> 12 | G36: =INDEX(Table1[Runs],SUMIFS(Table1[Number],Table1[Match Date],valSelMatchDate,Table1[TopScore Order],G$34)) -> 97 | H36: =INDEX(Table1[Runs],SUMIFS(Table1[Number],Table1[Match Date],valSelMatchDate,Table1[TopScore Order],H$34)) -> 91 | I36: =INDEX(Table1[Runs],SUMIFS(Table1[Number],Table1[Match Date],valSelMatchDate,Table1[TopScore Order],I$34)) -> 35 | L36: =INDEX(Table1[Overs Bowled (round figures only)],SUMIFS(Table1[Number],Table1[Match Date],valSelMatchDate,Table1[Top Wicket Takers],L$34)) -> 10 | M36: =INDEX(Table1[Overs Bowled (round figures only)],SUMIFS(Table1[Number],Table1[Match Date],valSelMatchDate,Table1[Top Wicket Takers],M$34)) -> 10 | N36: =INDEX(Table1[Overs Bowled (round figures only)],SUMIFS(Table1[Number],Table1[Match Date],valSelMatchDate,Table1[Top Wicket Takers],N$34)) -> 9 | P36: 2 | Q36: =INDEX($B$22:$B$36,MATCH(INDEX(Table1[Name],SUMIFS(Table1[Number],Table1[Match Date],valSelMatchDate,Table1[TopScore Order],$P36)),$C$22:$C$36,0)) -> Dhoni | R36: =INDEX(Table1[Runs],SUMIFS(Table1[Number],Table1[Match Date],valSelMatchDate,Table1[TopScore Order],$P36)) -> 91 | S36: =IF(INDEX(Table1[Got out (Yes / No)],SUMIFS(Table1[Number],Table1[Match Date],valSelMatchDate,Table1[TopScore Order],$P36))="n","*","") -> * | T36: =INDEX(Table1[Balls faced],SUMIFS(Table1[Number],Table1[Match Date],valSelMatchDate,Table1[TopScore Order],$P36)) -> 79 | U36: =INDEX(Table1[4s],SUMIFS(Table1[Number],Table1[Match Date],valSelMatchDate,Table1[TopScore Order],$P36)) -> 8 | V36: =INDEX(Table1[6s],SUMIFS(Table1[Number],Table1[Match Date],valSelMatchDate,Table1[TopScore Order],$P36)) -> 2 | W36: =INDEX(Table1[Runs],SUMIFS(Table1[Number],Table1[Match Date],valSelMatchDate,Table1[TopScore Order],$P36))/T36 -> 1.151898734 | X36: 2 | Y36: =INDEX($B$22:$B$36,MATCH(INDEX(Table1[Name],SUMIFS(Table1[Number],Table1[Match Date],valSelMatchDate,Table1[Top Wicket Takers],$X36)),$C$22:$C$36,0)) -> Zaheer | Z36: =INDEX(Table1[Overs Bowled (round figures only)],SUMIFS(Table1[Number],Table1[Match Date],valSelMatchDate,Table1[Top Wicket Takers],$X36)) -> 10 | AA36: =INDEX(Table1[Maidens],SUMIFS(Table1[Number],Table1[Match Date],valSelMatchDate,Table1[Top Wicket Takers],$X36)) -> 3 | AB36: =INDEX(Table1[Runs Given],SUMIFS(Table1[Number],Table1[Match Date],valSelMatchDate,Table1[Top Wicket Takers],$X36)) -> 60 | AC36: =INDEX(Table1[Wickets],SUMIFS(Table1[Number],Table1[Match Date],valSelMatchDate,Table1[Top Wicket Takers],$X36)) -> 2 | AD36: =AB36/Z36 -> 6
G37: =INDEX(Table1[Balls faced],SUMIFS(Table1[Number],Table1[Match Date],valSelMatchDate,Table1[TopScore Order],G$34)) -> 122 | H37: =INDEX(Table1[Balls faced],SUMIFS(Table1[Number],Table1[Match Date],valSelMatchDate,Table1[TopScore Order],H$34)) -> 79 | I37: =INDEX(Table1[Balls faced],SUMIFS(Table1[Number],Table1[Match Date],valSelMatchDate,Table1[TopScore Order],I$34)) -> 49 | L37: =INDEX(Table1[Wickets],SUMIFS(Table1[Number],Table1[Match Date],valSelMatchDate,Table1[Top Wicket Takers],L$34)) -> 2 | M37: =INDEX(Table1[Wickets],SUMIFS(Table1[Number],Table1[Match Date],valSelMatchDate,Table1[Top Wicket Takers],M$34)) -> 2 | N37: =INDEX(Table1[Wickets],SUMIFS(Table1[Number],Table1[Match Date],valSelMatchDate,Table1[Top Wicket Takers],N$34)) -> 0 | P37: 3 | Q37: =INDEX($B$22:$B$36,MATCH(INDEX(Table1[Name],SUMIFS(Table1[Number],Table1[Match Date],valSelMatchDate,Table1[TopScore Order],$P37)),$C$22:$C$36,0)) -> Kohli | R37: =INDEX(Table1[Runs],SUMIFS(Table1[Number],Table1[Match Date],valSelMatchDate,Table1[TopScore Order],$P37)) -> 35 | S37: =IF(INDEX(Table1[Got out (Yes / No)],SUMIFS(Table1[Number],Table1[Match Date],valSelMatchDate,Table1[TopScore Order],$P37))="n","*","") ->  | T37: =INDEX(Table1[Balls faced],SUMIFS(Table1[Number],Table1[Match Date],valSelMatchDate,Table1[TopScore Order],$P37)) -> 49 | U37: =INDEX(Table1[4s],SUMIFS(Table1[Number],Table1[Match Date],valSelMatchDate,Table1[TopScore Order],$P37)) -> 4 | V37: =INDEX(Table1[6s],SUMIFS(Table1[Number],Table1[Match Date],valSelMatchDate,Table1[TopScore Order],$P37)) -> 0 | W37: =INDEX(Table1[Runs],SUMIFS(Table1[Number],Table1[Match Date],valSelMatchDate,Table1[TopScore Order],$P37))/T37 -> 0.7142857143 | X37: 3 | Y37: =INDEX($B$22:$B$36,MATCH(INDEX(Table1[Name],SUMIFS(Table1[Number],Table1[Match Date],valSelMatchDate,Table1[Top Wicket Takers],$X37)),$C$22:$C$36,0)) -> Munaf | Z37: =INDEX(Table1[Overs Bowled (round figures only)],SUMIFS(Table1[Number],Table1[Match Date],valSelMatchDate,Table1[Top Wicket Takers],$X37)) -> 9 | AA37: =INDEX(Table1[Maidens],SUMIFS(Table1[Number],Table1[Match Date],valSelMatchDate,Table1[Top Wicket Takers],$X37)) -> 0 | AB37: =INDEX(Table1[Runs Given],SUMIFS(Table1[Number],Table1[Match Date],valSelMatchDate,Table1[Top Wicket Takers],$X37)) -> 41 | AC37: =INDEX(Table1[Wickets],SUMIFS(Table1[Number],Table1[Match Date],valSelMatchDate,Table1[Top Wicket Takers],$X37)) -> 0 | AD37: =AB37/Z37 -> 4.555555556
C38: Match Results | G38: =INDEX(Table1[4s],SUMIFS(Table1[Number],Table1[Match Date],valSelMatchDate,Table1[TopScore Order],G$34)) -> 9 | H38: =INDEX(Table1[4s],SUMIFS(Table1[Number],Table1[Match Date],valSelMatchDate,Table1[TopScore Order],H$34)) -> 8 | I38: =INDEX(Table1[4s],SUMIFS(Table1[Number],Table1[Match Date],valSelMatchDate,Table1[TopScore Order],I$34)) -> 4 | L38: =INDEX(Table1[Runs Given],SUMIFS(Table1[Number],Table1[Match Date],valSelMatchDate,Table1[Top Wicket Takers],L$34)) -> 49 | M38: =INDEX(Table1[Runs Given],SUMIFS(Table1[Number],Table1[Match Date],valSelMatchDate,Table1[Top Wicket Takers],M$34)) -> 60 | N38: =INDEX(Table1[Runs Given],SUMIFS(Table1[Number],Table1[Match Date],valSelMatchDate,Table1[Top Wicket Takers],N$34)) -> 41
C39: =IF(Data!P4="WON","India won",IF(Data!P4="LOST",Data!G4&" won","Match tied")) -> India won | G39: =INDEX(Table1[6s],SUMIFS(Table1[Number],Table1[Match Date],valSelMatchDate,Table1[TopScore Order],G$34)) -> 0 | H39: =INDEX(Table1[6s],SUMIFS(Table1[Number],Table1[Match Date],valSelMatchDate,Table1[TopScore Order],H$34)) -> 2 | I39: =INDEX(Table1[6s],SUMIFS(Table1[Number],Table1[Match Date],valSelMatchDate,Table1[TopScore Order],I$34)) -> 0 | L39: =INDEX(Table1[Maidens],SUMIFS(Table1[Number],Table1[Match Date],valSelMatchDate,Table1[Top Wicket Takers],L$34)) -> 0 | M39: =INDEX(Table1[Maidens],SUMIFS(Table1[Number],Table1[Match Date],valSelMatchDate,Table1[Top Wicket Takers],M$34)) -> 3 | N39: =INDEX(Table1[Maidens],SUMIFS(Table1[Number],Table1[Match Date],valSelMatchDate,Table1[Top Wicket Takers],N$34)) -> 0 | Q39: =AC28 -> DPMD Jayawardene | R39: =AD28 -> 103 | U39: =AB28 -> 27 | V39: =AA28 -> 2 | Y39: =AE28 -> SL Malinga | AA39: =AF28&" wickets" -> 2 wickets
C40: =IF(Data!P5="WON","India won",IF(Data!P5="LOST",Data!G5&" won","Match tied")) -> Match tied | G40: =INDEX(Table1[Got out (Yes / No)],SUMIFS(Table1[Number],Table1[Match Date],valSelMatchDate,Table1[TopScore Order],G$34)) -> y | H40: =INDEX(Table1[Got out (Yes / No)],SUMIFS(Table1[Number],Table1[Match Date],valSelMatchDate,Table1[TopScore Order],H$34)) -> n | I40: =INDEX(Table1[Got out (Yes / No)],SUMIFS(Table1[Number],Table1[Match Date],valSelMatchDate,Table1[TopScore Order],I$34)) -> y | L40: =L38/L36 -> 4.9 | M40: =M38/M36 -> 6 | N40: 4.555555556 | R40: =R39&" ("&U39&" fours, "&V39&" sixes)" -> 103 (27 fours, 2 sixes)
C41: =IF(Data!P6="WON","India won",IF(Data!P6="LOST",Data!G6&" won","Match tied")) -> India won | G41: =G36/G37 -> 0.7950819672 | H41: =H36/H37 -> 1.151898734 | I41: 0.7142857143 | L41: =TEXT(L40,"0.0") -> 4.9 | M41: =TEXT(M40,"0.0") -> 6.0 | N41: 4.6
C42: =IF(Data!P7="WON","India won",IF(Data!P7="LOST",Data!G7&" won","Match tied")) -> India won | F42: Display | G42: =G36&IF(G40="n","*","")&" ("&G37&", "&G38&" fours"&IF(G39>0,", "&G39&" sixes","")&TEXT(G41," - 0% ")&")" -> 97 (122, 9 fours - 80% ) | H42: =H36&IF(H40="n","*","")&" ("&H37&", "&H38&" fours"&IF(H39>0,", "&H39&" sixes","")&TEXT(H41," - 0% ")&")" -> 91* (79, 8 fours, 2 sixes - 115% ) | I42: 35 (49, 4 fours - 71% )
C43: =IF(Data!P8="WON","India won",IF(Data!P8="LOST",Data!G8&" won","Match tied")) -> South Africa won | G43: =UPPER(" "&J28&" best batting & bowling performances") -> SRI LANKA BEST BATTING & BOWLING PERFORMANCES
C44: =IF(Data!P9="WON","India won",IF(Data!P9="LOST",Data!G9&" won","Match tied")) -> India won
C45: =IF(Data!P10="WON","India won",IF(Data!P10="LOST",Data!G10&" won","Match tied")) -> India won
C46: =IF(Data!P11="WON","India won",IF(Data!P11="LOST",Data!G11&" won","Match tied")) -> India won
C47: =IF(Data!P12="WON","India won",IF(Data!P12="LOST",Data!G12&" won","Match tied")) -> India won
C50: 1
C51: 2
C52: 3
C53: 4
C54: 5
C55: 6
C56: 7
C57: 8
C58: 9
C59: 10
C60: 11
C61: 12
C62: 13
C63: 14
C64: 15
C65: 16
C66: 17
C67: 18

Sheet Flags (hidden)
E1: Flags | J1: Countries | K1: Abbr
J2: Australia | K2: Aus | L2: Selected Country | M2: =Calculations!J28 -> Sri Lanka
J3: Pakistan | K3: Pak | L3: Flag Position | M3: =MATCH(M2,J2:J15,0) -> 4
J4: New Zealand | K4: NZ
J5: Sri Lanka | K5: SL
J6: Zimbabwe | K6: Zim
J7: Canada | K7: Can
J8: Kenya | K8: Ken
J9: India | K9: Ind
J10: South Africa | K10: RSA
J11: England | K11: Eng
J12: West Indies | K12: WI
J13: Bangladesh | K13: Ban
J14: Ireland | K14: Ire
J15: Netherlands | K15: Neth

Sheet Best (hidden)
B2: =Calculations!O5 -> TM Dilshan (SL) | C2: =Calculations!P5 -> 500 | G2: =Data!O162 -> DPMD Jayawardene (SL) | H2: =Data!Q162 -> 8 | J2: =Data!T162&" & "&Data!U162 -> WU Tharanga & TM Dilshan | K2: =Data!W162 -> 282 | L2: =K2&" ("&Data!X162&")" -> 282 (268) | M2: ="for "&Data!Z162&" wkt vs. "&VLOOKUP(Data!Y162,Flags!$J$2:$K$15,2,FALSE) -> for 1st wkt vs. Zim
B3: =Calculations!O6 -> SR Tendulkar (Ind) | C3: =Calculations!P6 -> 482 | G3: =Data!O163 -> JH Kallis (SA) | H3: =Data!Q163 -> 6 | J3: =Data!T163&" & "&Data!U163 -> TM Dilshan & WU Tharanga | K3: =Data!W163 -> 231 | L3: =K3&" ("&Data!X163&")" -> 231 (237) | M3: ="for "&Data!Z163&" wkt vs. "&VLOOKUP(Data!Y163,Flags!$J$2:$K$15,2,FALSE) -> for 1st wkt vs. Eng
B4: =Calculations!O7 -> KC Sangakkara (SL) | C4: =Calculations!P7 -> 465 | G4: =Data!O164 -> RJ Peterson (SA) | H4: =Data!Q164 -> 6 | J4: =Data!T164&" & "&Data!U164 -> HM Amla & AB de Villiers | K4: =Data!W164 -> 221 | L4: =K4&" ("&Data!X164&")" -> 221 (176) | M4: ="for "&Data!Z164&" wkt vs. "&VLOOKUP(Data!Y164,Flags!$J$2:$K$15,2,FALSE) -> for 3rd wkt vs. Neth
B5: =Calculations!O8 -> IJL Trott (Eng) | C5: =Calculations!P8 -> 422 | G5: =Data!O165 -> KA Pollard (WI) | H5: =Data!Q165 -> 6 | J5: =Data!T165&" & "&Data!U165 -> V Sehwag & V Kohli | K5: =Data!W165 -> 203 | L5: =K5&" ("&Data!X165&")" -> 203 (145) | M5: ="for "&Data!Z165&" wkt vs. "&VLOOKUP(Data!Y165,Flags!$J$2:$K$15,2,FALSE) -> for 3rd wkt vs. Ban
B6: =Calculations!O9 -> WU Tharanga (SL) | C6: =Calculations!P9 -> 395 | G6: =Data!O166 -> TM Dilshan (SL) | H6: =Data!Q166 -> 6 | J6: =Data!T166&" & "&Data!U166 -> BJ Haddin & SR Watson | K6: =Data!W166 -> 183 | L6: =K6&" ("&Data!X166&")" -> 183 (173) | M6: ="for "&Data!Z166&" wkt vs. "&VLOOKUP(Data!Y166,Flags!$J$2:$K$15,2,FALSE) -> for 1st wkt vs. Can
B7: =Calculations!O10 -> G Gambhir (Ind) | C7: =Calculations!P10 -> 393 | G7: =Data!O167 -> JM Davison (Can) | H7: =Data!Q167 -> 5 | J7: =Data!T167&" & "&Data!U167 -> CR Ervine & T Taibu | K7: =Data!W167 -> 181 | L7: =K7&" ("&Data!X167&")" -> 181 (167) | M7: ="for "&Data!Z167&" wkt vs. "&VLOOKUP(Data!Y167,Flags!$J$2:$K$15,2,FALSE) -> for 3rd wkt vs. Can
B8: =Calculations!O11 -> V Sehwag (Ind) | C8: =Calculations!P11 -> 380 | G8: =Data!O168 -> AN Kervezee (Neth) | H8: =Data!Q168 -> 5 | J8: =Data!T168&" & "&Data!U168 -> KC Sangakkara & DPMD Jayawardene | K8: =Data!W168 -> 179 | L8: =K8&" ("&Data!X168&")" -> 179 (137) | M8: ="for "&Data!Z168&" wkt vs. "&VLOOKUP(Data!Y168,Flags!$J$2:$K$15,2,FALSE) -> for 3rd wkt vs. Can
B9: =Calculations!O12 -> Yuvraj Singh (Ind) | C9: =Calculations!P12 -> 362 | G9: =Data!O169 -> JDP Oram (NZ) | H9: =Data!Q169 -> 5 | J9: =Data!T169&" & "&Data!U169 -> WTS Porterfield & PR Stirling | K9: =Data!W169 -> 177 | L9: =K9&" ("&Data!X169&")" -> 177 (162) | M9: ="for "&Data!Z169&" wkt vs. "&VLOOKUP(Data!Y169,Flags!$J$2:$K$15,2,FALSE) -> for 1st wkt vs. Neth
B10: =Calculations!O13 -> AB de Villiers (RSA) | C10: =Calculations!P13 -> 353 | G10: =Data!O170 -> GC Smith (SA) | H10: =Data!Q170 -> 5 | J10: =Data!T170&" & "&Data!U170 -> IR Bell & AJ Strauss | K10: =Data!W170 -> 170 | L10: =K10&" ("&Data!X170&")" -> 170 (156) | M10: ="for "&Data!Z170&" wkt vs. "&VLOOKUP(Data!Y170,Flags!$J$2:$K$15,2,FALSE) -> for 3rd wkt vs. Ind
B11: =Calculations!O14 -> AJ Strauss (Eng) | C11: =Calculations!P14 -> 334 | G11: =Data!O171 -> Shahid Afridi (Pak) | H11: =Data!Q171 -> 5 | J11: =Data!T171&" & "&Data!U171 -> IR Bell & IJL Trott | K11: =Data!W171 -> 167 | L11: =K11&" ("&Data!X171&")" -> 167 (156) | M11: ="for "&Data!Z171&" wkt vs. "&VLOOKUP(Data!Y171,Flags!$J$2:$K$15,2,FALSE) -> for 3rd wkt vs. Ire
B13: =Calculations!R5 -> Shahid Afridi (Pak) | C13: =Calculations!S5 -> 21 | F13: =Calculations!T5 -> 21 wkts/74.3 ovrs
B14: =Calculations!R6 -> Z Khan (Ind) | C14: =Calculations!S6 -> 21 | F14: =Calculations!T6 -> 21/81.3
B15: =Calculations!R7 -> TG Southee (NZ) | C15: =Calculations!S7 -> 18 | F15: =Calculations!T7 -> 18/72.2
B16: =Calculations!R8 -> RJ Peterson (RSA) | C16: =Calculations!S8 -> 15 | F16: =Calculations!T8 -> 15/56
B17: =Calculations!R9 -> M Muralitharan (SL) | C17: =Calculations!S9 -> 15 | F17: =Calculations!T9 -> 15/71
B18: =Calculations!R10 -> Yuvraj Singh (Ind) | C18: =Calculations!S10 -> 15 | F18: =Calculations!T10 -> 15/75
B19: =Calculations!R11 -> Imran Tahir (RSA) | C19: =Calculations!S11 -> 14 | F19: =Calculations!T11 -> 14/39.3
B20: =Calculations!R12 -> Umar Gul (Pak) | C20: =Calculations!S12 -> 14 | F20: =Calculations!T12 -> 14/60.3
B21: =Calculations!R13 -> KAJ Roach (WI) | C21: =Calculations!S13 -> 13 | F21: =Calculations!T13 -> 13/46
B22: =Calculations!R14 -> B Lee (Aus) | C22: =Calculations!S14 -> 13 | F22: =Calculations!T14 -> 13/54.2

Sheet Players (hidden)
B1: Pic | C1: Player | D1: Batting 3 | E1: Bowling 3 | F1: Batting 3 loc | G1: Bowling 3 loc
C2: MS Dhoni (c/wk) | F2: =MATCH(Calculations!G35,Players!$C$2:$C$14,0) -> 5 | G2: =MATCH(Calculations!L35,Players!$C$2:$C$14,0) -> 3
C3: Sachin Tendulkar | F3: =MATCH(Calculations!H35,Players!$C$2:$C$14,0) -> 1 | G3: =MATCH(Calculations!M35,Players!$C$2:$C$14,0) -> 7
C4: Yuvraj Singh | F4: =MATCH(Calculations!I35,Players!$C$2:$C$14,0) -> 8 | G4: =MATCH(Calculations!N35,Players!$C$2:$C$14,0) -> 12
C5: Virender Sehwag (vc)
C6: Gautam Gambhir
C7: Harbhajan Singh
C8: Zaheer Khan
C9: Virat Kohli
C10: Ashish Nehra
C11: Suresh Raina
C12: Piyush Chawla
C13: Munaf Patel
C14: Ravichandran Ashwin
